bitfinex/quotes_ETHUSD_20240816
["timestamp","ask_amount","ask_price","bid_price","bid_amount"]
[1723770671667,4.2182433,2571.8,2571.7,2.2602]
[1723770671971,8.10656534,2571.8,2571.7,2.2602]
[1723770672172,3.8885,2571.7,2571.1,2.2602]
[1723770672377,0.88892981,2571.8,2571.1,2.2602]
[1723770672657,3.88923,2571.2,2571.1,2.2602]
[1723770673033,4.21887075,2571.2,2571.1,2.2602]
[1723770673252,8.10808399,2571.2,2571.1,2.2602]
[1723770673452,3.96722527,2571.2,2571.1,2.2602]
[1723770674132,0.07799527,2571.2,2571.1,2.2602]
[1723770674327,3.88901,2571.4,2571.1,2.2602]
[1723770674660,3.88885,2571.5,2571.1,2.2602]
[1723770674863,0.07790017,2571.3,2571.2,2.2602]
[1723770675065,7.77735,2571.6,2571.2,2.2602]
[1723770675363,0.07783994,2571.3,2571.2,2.2602]
[1723770675582,3.88893,2571.4,2571.2,2.2602]
[1723770675857,0.07779886,2571.3,2571.2,2.2602]
[1723770676259,3.88868,2571.6,2571.2,2.2602]
[1723770676463,0.0778152,2571.3,2571.2,2.2602]
[1723770676761,3.88841,2571.8,2571.2,2.2602]
[1723770676762,3.8885,2571.7,2571.2,6.14943]
[1723770676973,0.0778152,2571.3,2571.2,6.20263]
[1723770677140,3.88841,2571.8,2571.2,3.88923]
[1723770677348,0.25161081,2571.7,2571.4,2.3134]
[1723770677648,7.77685,2571.8,2571.4,2.3134]
[1723770677860,4.14013492,2571.7,2571.4,2.3134]
[1723770678062,3.88852,2571.7,2571.4,2.3134]
[1723770678266,3.88852,2571.7,2571.5,35.0]
[1723770678470,4.14026342,2571.6,2571.5,35.0]
[1723770678851,4.14026342,2571.6,2571.4,2.3134]
[1723770679031,3.88847,2571.7,2571.4,2.3134]
[1723770679032,3.88878,2571.5,2571.4,2.3134]
[1723770679231,3.88902,2571.4,2571.1,37.3134]
[1723770679835,3.88923,2571.2,2571.1,37.3134]
[1723770680633,0.0772027,2571.2,2571.1,37.3134]
[1723770680968,3.88911,2571.3,2571.1,2.3134]
[1723770681165,0.07720857,2571.2,2571.1,2.3134]
[1723770681565,3.88916,2571.3,2571.1,2.3134]
[1723770681868,0.07718627,2571.2,2571.1,2.3134]
[1723770682074,3.96641627,2571.2,2571.1,2.3134]
[1723770682272,7.77808,2571.4,2571.1,2.3134]
[1723770682478,0.07719214,2571.2,2571.1,2.3134]
[1723770682645,3.88901,2571.4,2571.1,2.3134]
[1723770682964,0.07721496,2571.3,2571.1,2.3134]
[1723770683941,3.88872,2571.6,2571.2,35.0]
[1723770684186,3.88871,2571.6,2571.2,35.0]
[1723770684362,3.8888,2571.5,2571.2,35.0]
[1723770684593,3.88871,2571.6,2571.2,35.0]
[1723770685141,7.77746,2571.6,2571.3,2.3623]
[1723770685353,4.14039451,2571.5,2571.0,6.25174]
[1723770685565,6.643456,2571.6,2571.0,6.25174]
[1723770685753,6.643456,2571.6,2571.1,37.2727]
[1723770686056,3.88871,2571.6,2571.1,37.2727]
[1723770686244,0.25157169,2571.5,2571.1,37.2727]
[1723770686443,3.88871,2571.6,2571.1,37.2727]
[1723770686680,0.2515878,2571.5,2571.1,37.2727]
[1723770687063,3.88923,2571.2,2571.1,35.0]
[1723770688095,3.88923,2571.2,2570.9,2.2502]
[1723770688394,3.88923,2571.2,2571.0,35.0]
[1723770688395,7.77854,2571.2,2571.0,35.0]
[1723770688538,3.88923,2571.2,2571.0,35.0]
[1723770690055,9.8233,2571.9,2571.1,2.2662]
[1723770690259,0.80156091,2571.8,2571.1,2.2662]
[1723770690456,7.77844,2571.3,2571.1,2.2662]
[1723770690640,7.77843,2571.3,2571.1,2.2662]
[1723770690858,3.88921,2571.3,2571.1,2.2662]
[1723770691062,3.88917,2571.3,2571.1,2.2662]
[1723770693688,7.77779,2571.5,2571.1,2.2662]
[1723770693873,0.25142116,2571.4,2571.1,2.2662]
[1723770694071,3.88887,2571.5,2571.1,2.2662]
[1723770694295,0.25143083,2571.4,2571.2,35.0]
[1723770695698,0.07322592,2571.3,2571.2,35.0]
[1723770695993,0.32465675,2571.3,2571.2,35.0]
[1723770696515,0.32478294,2571.3,2571.2,35.0]
[1723770696662,0.07322592,2571.3,2571.2,35.0]
[1723770696862,4.2138863,2571.3,2571.2,35.0]
[1723770697710,3.88923,2571.2,2571.1,2.2662]
[1723770698065,4.21270158,2571.2,2571.1,2.2662]
[1723770698363,0.32347158,2571.2,2571.1,2.2662]
[1723770700306,0.07189755,2571.2,2571.1,2.2662]
[1723770700604,0.3234332,2571.2,2571.1,2.2662]
[1723770700801,0.25153565,2571.2,2571.1,2.2662]
[1723770701099,0.32340055,2571.2,2571.1,2.2662]
[1723770702883,0.32340055,2571.2,2571.1,37.2662]
[1723770704016,0.32340055,2571.2,2570.5,0.1247944]
[1723770704017,3.89,2570.7,2570.5,2.4884944]
[1723770704221,0.25153565,2570.6,2570.5,2.4884944]
[1723770704535,0.32330604,2570.6,2570.5,37.4884944]
[1723770705032,0.25153565,2570.6,2570.5,37.4884944]
[1723770705594,0.25153565,2570.6,2570.5,39.0149944]
[1723770706021,0.07174368,2570.6,2570.5,39.0149944]
[1723770706243,0.32327933,2570.6,2570.5,41.2870944]
[1723770706454,0.25153565,2570.6,2570.5,41.2870944]
[1723770706731,0.07166015,2570.6,2570.5,41.2870944]
[1723770707024,0.3231958,2570.6,2570.5,41.2870944]
[1723770707201,0.25153565,2570.6,2570.5,41.2870944]
[1723770707407,0.06924986,2570.6,2570.5,41.2870944]
[1723770707831,0.25153565,2570.8,2570.5,39.0149944]
[1723770708036,0.0692616,2570.6,2570.5,39.0149944]
[1723770708191,3.8894,2571.1,2570.5,39.0149944]
[1723770708529,0.25147911,2571.0,2570.6,2.3939]
[1723770708693,0.25147911,2570.9,2570.6,2.3939]
[1723770708898,0.0693588,2571.0,2570.6,2.3939]
[1723770708899,0.25148539,2570.8,2570.6,2.3939]
[1723770709117,0.25148539,2570.7,2570.6,2.3939]
[1723770709518,0.32078743,2570.7,2570.6,2.3939]
[1723770709729,0.32078743,2570.7,2570.6,37.3939]
[1723770712431,0.32078743,2570.7,2570.6,42.64504]
[1723770713247,0.32078743,2570.7,2570.6,38.7549]
[1723770713429,0.32078743,2570.7,2570.6,37.3939]
[1723770716912,0.32075217,2570.7,2570.6,37.3939]
[1723770720645,0.32075217,2570.7,2570.6,35.0]
[1723770721712,0.74181239,2570.7,2570.6,35.0]
[1723770721963,0.74181239,2570.7,2570.5,0.1247944]
[1723770722204,0.25145013,2570.6,2570.5,0.1247944]
[1723770722445,0.25145013,2570.6,2570.5,35.1247944]
[1723770722620,0.32060013,2570.6,2570.5,35.1247944]
[1723770724118,0.32060013,2570.6,2570.5,40.36770769]
[1723770724341,0.06915,2570.6,2570.5,43.75750947]
[1723770724741,11.32943,2571.1,2570.5,43.75750947]
[1723770724944,0.06909493,2570.6,2570.5,40.3760844]
[1723770725145,7.44,2571.1,2570.8,2.4456]
[1723770725345,0.25139693,2571.0,2570.8,3.8066]
[1723770725549,0.25139693,2570.9,2570.8,2.4456]
[1723770725750,0.32060771,2570.9,2570.8,2.4456]
[1723770725965,0.32060771,2570.9,2570.8,36.35238906]
[1723770726167,0.32060771,2570.9,2570.8,35.0]
[1723770727037,0.32060771,2570.9,2570.8,37.4624]
[1723770727348,0.06921078,2570.9,2570.8,44.73296412]
[1723770727717,0.25141757,2571.4,2570.8,44.73296412]
[1723770727917,0.25141757,2571.3,2570.8,41.35223]
[1723770728145,0.25141757,2571.2,2570.9,1.35233156]
[1723770728344,0.25141757,2571.2,2570.8,41.35223]
[1723770728345,0.25141757,2571.1,2570.8,37.4624]
[1723770728549,0.25141757,2571.0,2570.8,37.4624]
[1723770728748,0.25141757,2570.9,2570.8,35.0]
[1723770728922,0.32078455,2570.9,2570.8,35.0]
[1723770730838,0.32078455,2570.9,2570.8,38.380954]
[1723770731143,0.32078455,2570.9,2570.8,35.0]
[1723770731455,0.32078455,2570.9,2570.8,38.38093688]
[1723770731758,4.21062925,2570.9,2570.8,1.35238937]
[1723770731928,4.21062925,2570.9,2570.5,0.1247944]
[1723770731929,4.74409991,2570.9,2570.5,0.1247944]
[1723770732133,5.50242831,2570.8,2570.5,0.1247944]
[1723770732430,15.31032,2570.6,2570.5,0.1247944]
[1723770732635,12.22176831,2570.6,2570.5,0.1247944]
[1723770732833,12.2910156,2570.6,2570.5,0.1247944]
[1723770733350,10.21533029,2570.6,2570.5,0.1247944]
[1723770733518,0.3207063,2570.6,2570.5,0.1247944]
[1723770734143,0.3207063,2570.6,2570.5,2.6070944]
[1723770734419,0.3207063,2570.6,2570.5,7.84989501]
[1723770734420,0.25145901,2570.6,2570.5,7.84989501]
[1723770734659,0.25145901,2570.6,2570.5,9.87864915]
[1723770734817,3.88946,2571.1,2570.6,3.8901]
[1723770735015,0.25147375,2571.0,2570.7,35.0]
[1723770735220,0.25147375,2570.9,2570.7,35.0]
[1723770735438,0.25147978,2570.8,2570.7,35.0]
[1723770736161,0.25147978,2570.8,2570.7,41.37229]
[1723770736361,0.25147978,2571.0,2570.7,37.4823]
[1723770736522,0.25147978,2570.9,2570.7,37.4823]
[1723770736722,0.25147978,2570.8,2570.7,35.0]
[1723770739571,3.88949,2571.1,2570.7,35.0]
[1723770739725,0.25144613,2571.0,2570.7,35.0]
[1723770740062,0.25144613,2570.9,2570.7,35.0]
[1723770740248,3.88954,2571.0,2570.7,35.0]
[1723770740249,0.25144613,2570.8,2570.7,35.0]
[1723770740442,0.25144613,2570.8,2570.5,6.4973644]
[1723770740755,0.32065254,2570.7,2570.6,1.35251679]
[1723770740957,4.21072254,2570.7,2570.5,35.1247944]
[1723770741126,4.14158613,2570.6,2570.5,0.1247944]
[1723770741327,14.5146213,2570.6,2570.5,0.1247944]
[1723770741551,15.13377391,2570.6,2570.5,0.1247944]
[1723770742149,9.07195099,2570.6,2570.5,0.1247944]
[1723770742463,4.63181099,2570.6,2570.5,0.1247944]
[1723770742764,0.32059874,2570.6,2570.5,0.1247944]
[1723770743633,0.32053581,2570.6,2570.5,0.1247944]
[1723770744029,0.32053886,2570.6,2570.5,0.1247944]
[1723770744676,4.21067886,2570.6,2570.5,0.1247944]
[1723770745177,0.32053886,2570.6,2570.5,0.1247944]
[1723770746129,4.21067886,2570.6,2570.5,0.1247944]
[1723770746335,5.02074575,2570.6,2570.5,0.1247944]
[1723770746744,1.13060575,2570.6,2570.5,0.1247944]
[1723770747301,5.02074575,2570.6,2570.5,0.1247944]
[1723770747685,5.02075147,2570.6,2570.5,0.1247944]
[1723770749433,1.13061147,2570.6,2570.5,0.1247944]
[1723770749635,5.02075147,2570.6,2570.5,0.1247944]
[1723770750466,0.32054458,2570.6,2570.5,0.1247944]
[1723770752570,4.21068458,2570.6,2570.5,0.1247944]
[1723770754472,8.10082458,2570.6,2570.5,0.1247944]
[1723770755649,8.10085062,2570.6,2570.5,0.1247944]
[1723770755874,4.21071062,2570.6,2570.5,0.1247944]
[1723770756170,4.21071233,2570.6,2570.5,0.1247944]
[1723770756372,15.3699072,2570.6,2570.5,0.1247944]
[1723770756575,11.64459739,2570.6,2570.5,0.1247944]
[1723770756755,15.36949759,2570.6,2570.5,0.1247944]
[1723770756955,11.64459739,2570.6,2570.5,0.1247944]
[1723770757166,15.36940796,2570.6,2570.5,0.1247944]
[1723770757569,11.64459739,2570.6,2570.5,0.1247944]
[1723770758048,15.36942679,2570.6,2570.5,0.1247944]
[1723770758447,15.36950189,2570.6,2570.5,0.1247944]
[1723770759788,15.3695184,2570.6,2570.5,0.1247944]
[1723770761559,11.6445985,2570.6,2570.5,0.1247944]
[1723770762384,15.36928491,2570.6,2570.5,0.1247944]
[1723770765887,11.6445985,2570.6,2570.5,0.1247944]
[1723770766263,15.36851452,2570.6,2570.5,0.1247944]
[1723770766463,9.1509985,2570.6,2570.5,0.1247944]
[1723770767086,13.5911385,2570.6,2570.5,0.1247944]
[1723770767899,13.59104661,2570.6,2570.5,0.1247944]
[1723770768264,16.04899521,2570.6,2570.5,0.1247944]
[1723770772000,15.79771767,2570.6,2570.5,0.1247944]
[1723770772203,16.04893349,2570.6,2570.5,0.1247944]
[1723770774000,17.41093349,2570.6,2570.5,0.1247944]
[1723770774896,21.30107349,2570.6,2570.5,0.1247944]
[1723770776107,21.04985767,2570.6,2570.5,0.1247944]
[1723770776400,21.30108048,2570.6,2570.5,0.1247944]
[1723770777338,21.3010759,2570.6,2570.5,0.1247944]
[1723770779971,25.1912159,2570.6,2570.5,4.4e-06]
[1723770780185,25.19119724,2570.6,2570.5,4.4e-06]
[1723770780506,24.93999767,2570.6,2570.5,4.4e-06]
[1723770780671,25.19119656,2570.6,2570.5,4.4e-06]
[1723770780872,31.72301615,2570.6,2570.5,4.4e-06]
[1723770781071,29.69626874,2570.6,2570.5,4.4e-06]
[1723770781275,7.78542,2568.9,2568.8,2.4438]
[1723770781517,3.89286,2568.8,2568.6,0.005]
[1723770781724,3.89286,2568.8,2568.7,37.4438]
[1723770781934,4.14412933,2568.8,2568.7,37.4438]
[1723770782077,4.14414497,2568.8,2568.7,37.4438]
[1723770782383,3.89182,2569.5,2568.8,2.4034]
[1723770782586,3.89153,2569.7,2568.8,2.4034]
[1723770782886,3.8925,2569.1,2568.9,35.0]
[1723770783088,3.89271,2568.9,2568.8,2.4034]
[1723770783620,4.14400738,2568.9,2568.8,2.4034]
[1723770783768,0.25129117,2568.9,2568.8,2.4034]
[1723770783979,3.89271,2568.9,2568.8,2.4034]
[1723770784288,3.89256,2569.0,2568.8,2.4034]
[1723770785116,7.78527,2569.0,2568.8,2.4034]
[1723770785509,7.78526,2569.0,2568.8,2.4034]
[1723770785720,7.78527,2569.0,2568.8,2.4034]
[1723770785999,0.06645862,2568.9,2568.8,2.4034]
[1723770787012,3.89203,2569.4,2568.9,2.2629]
[1723770787339,0.25128812,2569.3,2568.9,2.2629]
[1723770787546,0.25128812,2569.3,2568.9,3.89269]
[1723770787835,0.25128812,2569.3,2569.0,2.4411]
[1723770788038,3.89191,2569.5,2569.0,2.4411]
[1723770788244,0.25137071,2569.4,2569.0,2.4411]
[1723770788807,0.25137071,2569.4,2569.0,6.33366]
[1723770789109,0.25137071,2569.4,2569.0,2.4411]
[1723770789441,3.8917,2569.6,2569.0,2.4411]
[1723770789768,3.8914,2569.8,2569.2,2.4411]
[1723770789769,0.25135086,2569.5,2569.2,2.4411]
[1723770789939,2.83270942,2571.1,2569.5,2.4411]
[1723770789940,3.89122,2569.9,2569.5,2.4411]
[1723770790250,2.4882,2570.7,2569.5,2.4411]
[1723770790251,3.89165,2569.6,2569.5,2.4411]
[1723770790460,4.14302757,2569.6,2569.5,2.4411]
[1723770790608,4.14302757,2569.6,2569.5,35.0]
[1723770791107,4.14302103,2569.6,2569.5,35.0]
[1723770791463,4.1430231,2569.6,2569.5,35.0]
[1723770791757,4.14301946,2569.6,2569.5,35.0]
[1723770792257,0.25136946,2569.6,2569.5,35.0]
[1723770792608,7.78318,2569.7,2569.5,35.0]
[1723770792807,0.25136352,2569.6,2569.3,2.4411]
[1723770793256,7.78318,2569.7,2569.3,2.4411]
[1723770793431,0.25135221,2569.6,2569.4,35.0]
[1723770794069,7.61425985,2570.2,2569.8,3.89134]
[1723770794070,7.44,2570.2,2569.8,3.89134]
[1723770794371,6.1595,2570.8,2570.0,3.89091]
[1723770794372,11.33023,2570.6,2570.0,3.89091]
[1723770794511,0.25137656,2570.5,2570.0,3.89091]
[1723770794711,4.14166656,2570.5,2570.0,3.89091]
[1723770795011,0.25138712,2570.4,2570.0,3.89091]
[1723770795256,3.89029,2570.5,2570.0,3.89091]
[1723770795749,0.25140128,2570.4,2570.0,3.89091]
[1723770796104,7.44,2570.6,2570.1,2.2992]
[1723770796307,4.14169759,2570.5,2570.1,2.2992]
[1723770796553,7.7807,2570.5,2570.1,2.2992]
[1723770796754,3.89029,2570.5,2570.1,2.2992]
[1723770797506,7.44,2570.6,2570.1,2.2992]
[1723770797707,7.44,2570.6,2570.2,3.89066]
[1723770797910,7.44,2570.6,2570.1,2.2992]
[1723770798347,7.44,2570.6,2570.1,6.19009]
[1723770798653,11.33014,2570.6,2570.1,6.19009]
[1723770798817,7.44,2570.6,2570.1,6.19009]
[1723770799017,7.44,2570.6,2570.1,2.2992]
[1723770799225,11.33016,2570.6,2570.1,2.2992]
[1723770800317,3.8903,2570.5,2570.1,2.2992]
[1723770800523,3.8903,2570.5,2569.9,2.2992]
[1723770800854,8.962023,2570.6,2569.9,2.2992]
[1723770800855,3.8907,2570.3,2569.9,2.2992]
[1723770801340,0.05538522,2570.2,2569.9,2.2992]
[1723770801745,3.8907,2570.3,2569.9,2.2992]
[1723770801909,0.05536238,2570.1,2569.9,2.2992]
[1723770802108,3.8907,2570.3,2569.9,2.2992]
[1723770802337,0.05526687,2570.0,2569.9,6.1904]
[1723770802649,7.44,2570.6,2570.2,2.357]
[1723770805042,11.33022,2570.6,2570.2,2.357]
[1723770805243,3.89031,2570.5,2570.2,2.357]
[1723770805440,3.89031,2570.5,2569.9,3.89112]
[1723770805441,3.89053,2570.4,2569.9,2.2927]
[1723770806265,3.89061,2570.3,2569.9,2.2927]
[1723770808354,9.0660326,2570.5,2569.9,2.2927]
[1723770808560,3.89046,2570.4,2569.9,2.2927]
[1723770808755,5.1756026,2570.5,2569.9,6.18381]
[1723770808756,9.0659826,2570.5,2569.9,6.18381]
[1723770809068,5.1756026,2570.5,2569.9,6.18381]
[1723770809281,9.0659826,2570.5,2569.9,6.18381]
[1723770809433,5.1756026,2570.5,2569.9,6.18381]
[1723770809836,7.44,2570.6,2570.1,2.3815]
[1723770810269,7.44,2570.6,2570.2,3.89072]
[1723770810777,7.44,2570.6,2570.3,2.4487]
[1723770811338,8.573,2570.6,2570.3,2.4487]
[1723770813245,7.44,2570.6,2570.3,2.4487]
[1723770813852,7.78007,2570.7,2570.3,2.4487]
[1723770814069,7.78008,2570.7,2570.3,2.4487]
[1723770814370,0.2515469,2570.6,2570.3,2.4487]
[1723770815647,0.05265043,2570.5,2570.3,2.4487]
[1723770815973,0.389,2570.6,2570.3,2.4487]
[1723770816159,0.05263346,2570.4,2570.3,2.4487]
[1723770816350,0.389,2570.6,2570.3,2.4487]
[1723770816546,0.05263346,2570.4,2570.3,2.4487]
[1723770816750,0.389,2570.6,2570.3,2.4487]
[1723770816945,0.05259238,2570.4,2570.3,2.4487]
[1723770817148,0.389,2570.6,2570.3,2.4487]
[1723770817371,0.05259825,2570.4,2570.3,2.4487]
[1723770817552,0.25166715,2570.4,2570.3,2.4487]
[1723770817751,0.05260412,2570.4,2570.3,2.4487]
[1723770817951,0.30427127,2570.4,2570.3,2.4487]
[1723770819281,0.05260412,2570.4,2570.3,2.4487]
[1723770819445,0.25176957,2570.4,2570.3,2.4487]
[1723770819642,0.05263346,2570.4,2570.3,2.4487]
[1723770819847,0.30440303,2570.4,2570.3,2.4487]
[1723770822054,0.30440303,2570.4,2570.1,6.26337]
[1723770822259,0.25176957,2570.3,2570.1,6.26337]
[1723770822487,0.25176957,2570.2,2570.1,6.26337]
[1723770823292,4.27917,2570.6,2570.1,6.26337]
[1723770823516,5.17235369,2570.5,2570.1,6.26337]
[1723770823713,0.25178714,2570.4,2570.1,6.26337]
[1723770823902,0.25178714,2570.3,2570.1,6.26337]
[1723770824103,0.25178714,2570.2,2570.1,6.26337]
[1723770824504,0.30436583,2570.2,2570.1,6.26337]
[1723770824710,0.30436583,2570.2,2570.1,41.26337]
[1723770827435,3.89017,2570.6,2570.1,41.26337]
[1723770827602,0.05255642,2570.2,2570.1,41.26337]
[1723770827926,0.25190392,2570.2,2570.1,41.26337]
[1723770828127,0.30446034,2570.2,2570.1,41.26337]
[1723770829535,0.30446034,2570.2,2570.1,45.15426]
[1723770829737,0.05255642,2570.2,2570.1,49.5891863]
[1723770829904,3.73244909,2571.0,2570.8,2.3994]
[1723770830237,3.88938,2571.2,2570.8,2.3994]
[1723770830238,0.300538,2570.9,2570.8,2.3994]
[1723770830605,0.300538,2570.9,2570.8,37.3994]
[1723770833327,0.300538,2570.9,2570.8,35.0]
[1723770835410,0.04923505,2570.9,2570.8,35.0]
[1723770835607,0.25137179,2570.9,2570.6,2.4932]
[1723770835911,0.25137179,2570.9,2570.6,6.38329]
[1723770835912,0.25137179,2570.8,2570.6,6.38329]
[1723770836129,0.25137179,2570.7,2570.6,6.38329]
[1723770836438,0.30073722,2570.7,2570.6,6.38329]
[1723770836637,0.30073722,2570.7,2570.6,37.4932]
[1723770836820,0.25137179,2570.7,2570.6,37.4932]
[1723770837345,0.25137179,2570.9,2570.6,37.4932]
[1723770837506,0.25137179,2570.8,2570.6,37.4932]
[1723770837705,0.25137179,2570.8,2570.4,2.429]
[1723770837706,4.14136179,2570.7,2570.4,2.429]
[1723770837906,4.14160179,2570.6,2570.2,2.429]
[1723770838169,4.14174179,2570.5,2570.0,6.32004]
[1723770838324,0.25137179,2570.4,2570.3,35.0]
[1723770838521,0.30068508,2570.4,2570.3,35.0]
[1723770838722,0.25137179,2570.4,2570.3,35.0]
[1723770838927,0.30068508,2570.4,2570.3,35.0]
[1723770839367,2.50681329,2570.4,2569.8,0.81562185]
[1723770839641,3.89154,2569.7,2569.4,2.2516]
[1723770839816,3.89154,2569.7,2569.5,35.0]
[1723770839817,0.25155831,2569.6,2569.5,35.0]
[1723770842121,3.89106,2570.0,2569.5,37.2742]
[1723770842320,0.25161616,2569.9,2569.5,37.2742]
[1723770842542,0.25161616,2569.8,2569.5,37.2742]
[1723770843016,0.04856555,2569.7,2569.5,41.16591]
[1723770843226,3.89097,2570.1,2569.5,45.05761]
[1723770843425,0.25156473,2570.0,2569.6,3.89165]
[1723770843766,0.25156473,2570.0,2569.5,37.2742]
[1723770843767,0.25156473,2569.9,2569.5,37.2742]
[1723770844067,4.14292473,2569.8,2569.5,37.2742]
[1723770844233,0.25156473,2569.7,2569.5,37.2742]
[1723770844420,7.78257,2569.9,2569.5,37.2742]
[1723770844620,0.25178223,2569.8,2569.5,37.2742]
[1723770845672,0.04856578,2569.7,2569.5,41.16592]
[1723770845854,3.89106,2570.0,2569.5,41.16592]
[1723770846060,3.89098,2570.1,2569.5,41.16592]
[1723770846061,0.04851656,2569.6,2569.5,41.16592]
[1723770846236,7.78198,2570.1,2569.5,41.16592]
[1723770846421,0.0485415,2569.6,2569.5,41.16592]
[1723770846769,3.89098,2570.1,2569.5,41.16592]
[1723770846917,4.14284374,2570.0,2569.5,41.16592]
[1723770847119,0.25179374,2569.9,2569.5,41.16592]
[1723770847319,0.25179374,2569.9,2569.5,37.2742]
[1723770847522,0.04859571,2569.8,2569.5,37.2742]
[1723770848033,3.89105,2570.0,2569.5,41.166]
[1723770848267,0.04857142,2569.7,2569.5,41.166]
[1723770848564,7.7822,2570.0,2569.5,37.2742]
[1723770848758,0.04854857,2569.6,2569.5,37.2742]
[1723770848968,7.7822,2570.0,2569.5,37.2742]
[1723770849128,0.25177834,2569.9,2569.5,37.2742]
[1723770849327,0.30040133,2569.9,2569.5,37.2742]
[1723770849664,0.25177834,2569.8,2569.5,37.2742]
[1723770849964,0.30031891,2569.8,2569.5,37.2742]
[1723770850150,0.04854057,2569.8,2569.5,37.2742]
[1723770850884,3.89165,2569.6,2569.5,35.0]
[1723770851032,4.1433917,2569.6,2569.1,2.4045]
[1723770851226,0.2517417,2569.5,2569.1,2.4045]
[1723770851535,0.3000371,2569.5,2569.2,35.0]
[1723770851739,0.0482954,2569.5,2569.2,35.0]
[1723770853037,3.89174,2569.6,2569.2,35.0]
[1723770853233,0.04820147,2569.4,2569.2,35.0]
[1723770853458,3.89171,2569.6,2569.2,35.0]
[1723770853639,0.04813749,2569.3,2569.2,35.0]
[1723770853841,3.89151,2569.7,2569.2,35.0]
[1723770854085,0.04818868,2569.3,2569.2,35.0]
[1723770854394,7.78311,2569.7,2569.2,35.0]
[1723770854543,0.2517952,2569.6,2569.2,35.0]
[1723770854742,0.30005041,2569.6,2569.2,35.0]
[1723770854961,0.04825521,2569.6,2569.2,35.0]
[1723770856595,3.94000521,2569.6,2569.2,35.0]
[1723770857857,0.04825521,2569.6,2569.2,35.0]
[1723770858061,0.04825521,2569.6,2569.2,38.89217]
[1723770858949,0.04825521,2569.6,2569.2,35.0]
[1723770859178,3.93991521,2569.6,2569.2,35.0]
[1723770862760,0.25179187,2569.5,2569.2,35.0]
[1723770863181,0.04824985,2569.4,2569.2,35.0]
[1723770863597,3.89144,2569.8,2569.3,6.2054]
[1723770863802,0.25177797,2569.7,2569.3,6.2054]
[1723770864267,0.25177797,2569.7,2569.4,35.0]
[1723770865990,4.14330797,2569.7,2569.4,35.0]
[1723770866198,0.25177797,2569.6,2569.4,35.0]
[1723770866496,0.25177797,2569.5,2569.4,35.0]
[1723770867392,0.25177797,2569.5,2569.4,37.4239]
[1723770868092,3.89152,2569.7,2569.4,37.4239]
[1723770868299,0.25177797,2569.6,2569.4,37.4239]
[1723770868468,0.25177797,2569.5,2569.4,37.4239]
[1723770872295,0.25177797,2569.5,2569.4,35.0]
[1723770872547,0.25177797,2569.5,2569.0,6.21446]
[1723770872718,0.25177797,2569.4,2569.0,6.21446]
[1723770873011,0.25177797,2569.3,2569.1,35.0]
[1723770873181,0.25177797,2569.2,2569.1,35.0]
[1723770874077,0.29964701,2569.2,2569.1,35.0]
[1723770874506,0.29964486,2569.2,2569.1,35.0]
[1723770875577,3.89254,2569.1,2568.7,2.3427]
[1723770875780,4.19190486,2569.2,2568.7,2.3427]
[1723770875781,0.25142641,2569.0,2568.7,2.3427]
[1723770875978,0.25142641,2568.9,2568.7,2.3427]
[1723770876301,0.29948281,2568.8,2568.7,37.3427]
[1723770878211,0.29955147,2568.8,2568.7,37.3427]
[1723770878930,0.29955147,2568.8,2568.7,35.0]
[1723770879320,4.19241147,2568.8,2568.7,35.0]
[1723770879522,3.89301,2568.7,2568.6,0.005]
[1723770879698,4.14450507,2568.7,2568.6,0.005]
[1723770879901,4.19233486,2568.7,2568.6,0.005]
[1723770881616,0.29932098,2568.7,2568.6,0.005]
[1723770883044,0.04782979,2568.7,2568.6,2.4]
[1723770883206,15.225,2569.1,2568.6,2.4]
[1723770883407,0.29935007,2569.0,2568.7,35.0]
[1723770883831,0.25145854,2568.9,2568.7,35.0]
[1723770884243,0.04781303,2568.8,2568.7,35.0]
[1723770884404,0.29927157,2568.8,2568.7,35.0]
[1723770884612,0.29926609,2568.8,2568.7,35.0]
[1723770885722,0.2992623,2568.8,2568.7,35.0]
[1723770886847,0.04781303,2568.8,2568.7,35.0]
[1723770887006,11.33241,2569.1,2568.7,35.0]
[1723770887224,0.04788814,2569.0,2568.7,35.0]
[1723770887405,0.29935127,2569.0,2568.7,35.0]
[1723770887741,0.04788814,2569.0,2568.7,35.0]
[1723770887947,0.25147889,2568.9,2568.7,35.0]
[1723770888329,0.04785415,2568.8,2568.7,35.0]
[1723770888945,11.33241,2569.1,2568.7,35.0]
[1723770889145,0.04781303,2568.8,2568.7,35.0]
[1723770889442,0.0478189,2568.8,2568.7,35.0]
[1723770889646,15.2249,2569.1,2568.7,35.0]
[1723770889851,0.29936917,2569.0,2568.7,35.0]
[1723770890150,0.25150453,2568.9,2568.7,35.0]
[1723770890510,0.04798838,2568.8,2568.7,35.0]
[1723770890715,0.29949291,2568.8,2568.7,35.0]
[1723770891037,0.29941135,2568.8,2568.7,35.0]
[1723770891422,0.04798838,2568.8,2568.7,35.0]
[1723770891747,15.22492,2569.1,2568.7,35.0]
[1723770891748,15.2249,2569.1,2568.7,35.0]
[1723770891947,0.048006,2568.8,2568.7,35.0]
[1723770892114,0.25137463,2568.8,2568.7,35.0]
[1723770892315,0.29938421,2568.8,2568.7,35.0]
[1723770892557,0.048006,2568.8,2568.7,35.0]
[1723770892948,15.2249,2569.1,2568.7,35.0]
[1723770893116,0.04801775,2568.8,2568.7,35.0]
[1723770893455,0.29937961,2568.8,2568.7,35.0]
[1723770894223,0.04801775,2568.8,2568.7,35.0]
[1723770894423,0.25136606,2568.9,2568.7,35.0]
[1723770894620,0.29935444,2568.8,2568.7,35.0]
[1723770895424,0.04798838,2568.8,2568.7,35.0]
[1723770895753,0.25135979,2568.8,2568.7,35.0]
[1723770895925,0.29943122,2568.8,2568.7,35.0]
[1723770896325,0.04807143,2568.8,2568.7,35.0]
[1723770896644,0.29945085,2568.8,2568.7,35.0]
[1723770897057,0.29945085,2568.8,2568.7,38.89301]